bitfinex-derivatives/quotes_ETHF0:USTF0_20260203
["timestamp","ask_amount","ask_price","bid_price","bid_amount"]
[1770155100876,1.95012254,2296.4,2295.4,2.44781932]
[1770155102077,1.89642583,2296.3,2295.4,0.00312708]
[1770155102474,44.93298447,2296.5,2295.4,2.44781932]
[1770155102778,4.016,2296.5,2295.4,2.44781932]
[1770155102976,4.016,2296.5,2295.5,2.44469224]
[1770155103180,4.016,2296.5,2295.7,2.44469224]
[1770155103475,2.179,2296.6,2295.7,2.44469224]
[1770155103670,2.179,2296.6,2295.9,2.44469224]
[1770155105580,4.024,2296.9,2295.9,2.44469224]
[1770155106080,0.00348487,2297.0,2295.9,2.44469224]
[1770155106273,1.86075623,2297.0,2296.1,2.44469224]
[1770155109080,1.86075623,2297.0,2295.8,2.44469224]
[1770155109271,1.8278802,2296.9,2295.8,2.44469224]
[1770155109474,1.8278802,2296.7,2295.8,2.44469224]
[1770155112177,4.025,2296.8,2295.8,2.44469224]
[1770155113983,4.01512165,2296.8,2295.8,2.44469224]
[1770155114585,0.00348487,2297.0,2295.8,2.44469224]
[1770155114779,0.00348487,2297.0,2296.1,2.44469224]
[1770155114984,4.033,2297.4,2296.1,2.44469224]
[1770155115284,1.76790342,2297.3,2296.1,2.44469224]
[1770155115886,1.77244226,2297.3,2296.1,2.44469224]
[1770155116186,0.00453884,2297.3,2296.1,2.44469224]
[1770155117485,0.00453884,2297.3,2296.2,2.44469224]
[1770155118688,40.88525881,2297.3,2296.2,2.44469224]
[1770155118887,1.86016133,2297.2,2296.2,2.44469224]
[1770155119285,1.86016133,2297.1,2296.2,2.44469224]
[1770155119685,42.14609748,2297.3,2296.2,2.44469224]
[1770155119879,1.79589427,2297.2,2296.2,2.44469224]
[1770155121891,40.80573168,2297.0,2296.0,2.31704854]
[1770155122088,5.85917304,2296.9,2296.0,2.31704854]
[1770155125288,1.81256533,2296.8,2295.9,2.60501224]
[1770155125489,1.81256533,2296.8,2295.4,2.32017562]
[1770155125490,1.81256533,2296.6,2295.4,2.32017562]
[1770155125690,1.81256533,2296.4,2295.4,2.32017562]
[1770155125990,5.90356533,2296.3,2295.4,2.32017562]
[1770155127694,1.82052129,2296.2,2295.4,2.32017562]
[1770155131089,4.091,2296.3,2295.4,2.32017562]
[1770155134088,2.179,2296.8,2295.5,4.92206078]
[1770155134291,2.179,2296.8,2295.9,2.31704854]
[1770155135396,2.179,2296.8,2296.1,2.31704854]
[1770155136901,4.111,2297.1,2296.1,2.31704854]
[1770155138501,1.81716211,2296.9,2295.9,2.31704854]
[1770155138798,1.81716211,2296.8,2295.9,2.31704854]
[1770155139897,43.13155864,2297.1,2295.9,2.31704854]
[1770155140104,41.19955864,2297.6,2296.3,2.31704854]
[1770155140394,2.179,2297.6,2296.3,2.31704854]
[1770155140595,6.49850883,2298.1,2296.3,2.31704854]
[1770155140596,1.83231864,2298.2,2296.9,2.31704854]
[1770155141192,4.124,2298.3,2297.0,2.31704854]
[1770155141390,1.53479903,2298.2,2297.0,2.31704854]
[1770155141592,1.54042483,2298.2,2297.0,2.31704854]
[1770155141801,0.94042483,2298.2,2297.0,2.31704854]
[1770155142399,0.94042483,2298.2,2297.0,5.14000078]
[1770155142400,0.0056258,2298.2,2297.0,5.14000078]
[1770155142701,0.0056258,2298.2,2297.1,2.31704854]
[1770155142902,0.0056258,2298.2,2297.1,2.32156428]
[1770155146103,0.21778,2298.8,2297.1,2.32156428]
[1770155146302,4.95764238,2298.9,2297.2,2.31704854]
[1770155146502,39.02055864,2299.5,2298.5,2.31704854]
[1770155146701,0.82664238,2300.2,2298.5,2.31704854]
[1770155146897,0.82664238,2299.9,2298.5,2.31704854]
[1770155147100,0.82664238,2299.7,2298.5,2.31704854]
[1770155147405,2.556,2299.8,2298.5,2.31704854]
[1770155147903,3.32320214,2299.8,2298.5,2.31704854]
[1770155148405,2.556,2299.8,2298.5,2.31704854]
[1770155150900,0.00448483,2299.9,2298.5,2.31704854]
[1770155151303,0.77896006,2299.8,2298.5,2.31704854]
[1770155151603,0.00448483,2299.9,2298.5,2.31704854]
[1770155152811,0.00448483,2299.9,2298.7,2.33438982]
[1770155153012,0.00448483,2299.9,2298.8,2.33438982]
[1770155153212,0.00448483,2299.9,2298.8,2.33888061]
[1770155154812,0.77965653,2299.9,2298.8,2.33888061]
[1770155155421,0.00448483,2299.9,2298.8,2.33888061]
[1770155155816,0.76776631,2299.9,2298.8,2.33888061]
[1770155156021,0.76328148,2299.8,2298.8,2.33888061]
[1770155156217,0.98543631,2299.9,2298.8,2.33888061]
[1770155157123,0.76328148,2299.8,2298.8,2.33888061]
[1770155157524,0.71015022,2299.7,2298.8,2.33888061]
[1770155157725,0.00448483,2299.9,2297.6,2.60967643]
[1770155157726,0.71015022,2299.4,2297.6,2.60967643]
[1770155158025,0.71015022,2299.4,2297.7,2.39179643]
[1770155158026,0.70565943,2299.3,2297.7,2.39179643]
[1770155158223,0.70565943,2299.3,2297.7,2.60966643]
[1770155158418,2.554,2299.4,2297.8,0.21787]
[1770155158725,2.554,2299.4,2298.2,2.39179643]
[1770155160022,0.72511797,2299.3,2298.2,2.39179643]
[1770155160628,0.72511797,2299.2,2298.2,2.39179643]
[1770155160923,2.554,2299.4,2297.6,1.13560231]
[1770155160924,0.21779,2298.6,2297.6,1.13560231]
[1770155161125,1.98131209,2298.5,2297.6,1.13560231]
[1770155161320,1.98131209,2298.5,2296.7,2.554]
[1770155161622,1.98131209,2298.5,2296.6,0.21798]
[1770155161926,2.11130214,2298.3,2296.6,0.00426623]
[1770155162126,2.177,2298.3,2296.6,0.00426623]
[1770155162326,2.177,2298.3,2296.7,0.00502038]
[1770155162527,2.11130214,2298.2,2296.6,0.00426623]
[1770155162727,2.11582716,2298.2,2296.6,0.00426623]
[1770155162923,2.11582716,2298.2,2296.7,2.39179643]
[1770155163322,2.177,2298.2,2296.7,2.39179643]
[1770155164427,2.18101666,2298.2,2296.7,2.39179643]
[1770155165428,0.01385209,2298.1,2296.7,2.39179643]
[1770155166231,0.01385209,2298.0,2296.7,2.39179643]
[1770155166439,0.01385209,2297.2,2296.1,2.48744981]
[1770155167433,0.00768812,2297.1,2296.1,2.48744981]
[1770155167636,2.18468812,2297.1,2296.1,2.49255599]
[1770155167837,2.177,2297.1,2296.1,2.49255599]
[1770155168838,2.177,2297.1,2296.1,2.49757637]
[1770155169538,2.177,2297.1,2296.3,2.47285902]
[1770155172538,2.177,2297.1,2296.1,0.00510618]
[1770155172539,2.2198831,2297.1,2296.1,0.00510618]
[1770155172741,2.2198831,2297.1,2296.1,2.47804048]
[1770155173239,2.2198831,2297.1,2296.1,2.48306086]
[1770155173936,0.05423597,2297.0,2296.1,0.00510618]
[1770155174242,0.05423597,2296.8,2295.8,2.46725787]
[1770155174836,0.05423597,2296.8,2295.4,0.21782221]
[1770155175041,0.05423597,2296.8,2295.4,2.68508008]
[1770155175241,0.05423597,2296.8,2295.4,2.68960853]
[1770155175536,0.0651268,2296.4,2295.4,2.68960853]
[1770155175736,2.6201268,2296.3,2295.4,2.68960853]
[1770155178740,0.04595849,2296.2,2295.4,0.22235066]
[1770155179734,0.00231951,2296.1,2295.4,0.22235066]
[1770155180143,0.22035951,2296.0,2294.0,2.4932161]
[1770155180442,2.179,2296.1,2294.7,2.4932161]
[1770155180443,0.00231951,2295.7,2294.7,2.4932161]
[1770155180837,0.00231951,2295.7,2293.4,2.82329224]
[1770155180838,0.00733042,2295.2,2293.4,2.49332804]
[1770155181036,0.21813,2295.0,2293.4,2.49332804]
[1770155181234,2.77413,2295.0,2293.4,2.49665567]
[1770155181433,2.78102371,2295.0,2293.9,2.4935464]
[1770155181633,0.22504371,2294.9,2293.9,2.4935464]
[1770155182039,0.22504371,2294.9,2293.4,0.00332763]
[1770155182040,0.00689371,2294.6,2293.5,2.4935464]
[1770155182238,0.01114928,2294.6,2293.5,2.4935464]
[1770155182546,0.21819,2294.5,2293.5,2.4935464]
[1770155183045,0.21819,2294.5,2293.5,2.49856678]
[1770155183547,0.21819,2294.5,2293.6,0.00502038]
[1770155184242,0.07090481,2294.3,2293.4,0.00332763]
[1770155184443,2.557,2294.2,2293.4,0.00332763]
[1770155184945,2.557,2294.2,2293.4,0.00834801]
[1770155185648,2.557,2294.2,2293.4,2.45891914]
[1770155185843,2.557,2294.2,2293.4,2.46393952]
[1770155186744,0.08280349,2293.9,2292.8,2.45559151]
[1770155186950,0.21825,2293.8,2292.8,2.45559151]
[1770155187344,0.21825,2293.8,2292.8,2.46061189]
[1770155187644,0.301492,2293.7,2292.8,2.45559151]
[1770155187846,0.301502,2293.6,2292.8,0.004191]
[1770155188041,0.083232,2293.5,2291.1,2.45537725]
[1770155188246,0.21831,2293.2,2291.8,2.45537725]
[1770155188440,2.18,2293.1,2291.8,2.45537725]
[1770155188750,2.18,2293.1,2292.2,2.45537725]
[1770155188946,2.18,2293.1,2292.3,0.00502038]
[1770155189150,0.09961356,2293.0,2292.2,0.00509871]
[1770155189550,0.31793356,2293.0,2291.9,2.45537725]
[1770155189750,0.31797356,2292.6,2290.7,2.44718647]
[1770155190052,2.558,2292.5,2290.7,2.44718647]
[1770155190350,2.558,2292.5,2291.6,2.44718647]
[1770155190746,2.558,2292.5,2291.6,0.00458135]
[1770155190747,2.56276664,2292.5,2291.6,0.00458135]
[1770155190943,0.31799356,2292.4,2291.6,0.00458135]
[1770155191143,0.09961356,2292.3,2291.6,0.00458135]
[1770155191853,0.09961356,2292.3,2291.2,2.44718647]
[1770155192051,0.09961356,2292.3,2291.3,0.00502038]
[1770155192650,0.21838,2292.4,2291.5,2.41181296]
[1770155193048,0.21838,2292.4,2291.5,2.41492726]
[1770155193855,0.21838,2292.4,2291.5,2.41994764]
[1770155194452,0.23067305,2292.3,2291.5,0.0031143]
[1770155195352,0.23067305,2292.3,2291.2,2.38165673]
[1770155195554,0.22930596,2292.2,2290.0,2.38234028]
[1770155195749,0.22930596,2292.0,2290.3,2.38736066]
[1770155195949,0.22930596,2291.9,2290.5,2.38234028]
[1770155196354,0.22930596,2291.6,2289.6,2.38234028]
[1770155196548,0.21845,2291.7,2290.4,2.38234028]
[1770155196549,2.78930596,2291.5,2290.4,2.38234028]
[1770155196756,2.56,2291.5,2290.4,2.38234028]
[1770155196954,2.56,2291.5,2290.6,2.38736066]
[1770155197154,2.56,2291.5,2290.6,2.38234028]
[1770155197454,2.56,2291.5,2290.7,0.00502038]
[1770155197651,2.56,2291.5,2290.9,0.00502038]
[1770155198152,2.56,2291.5,2289.6,0.22355259]
[1770155198153,0.2967026,2291.2,2290.2,2.34864195]
[1770155198454,2.182,2291.1,2290.2,2.34864195]
[1770155198654,2.182,2291.1,2290.6,2.34864195]
[1770155199152,2.182,2291.1,2290.3,2.34864195]
[1770155199656,2.48710504,2291.1,2289.7,2.34444073]
[1770155200555,0.30510504,2291.0,2289.7,2.34444073]
[1770155203056,2.71702551,2291.1,2289.7,2.34444073]
[1770155203555,0.35725349,2290.7,2289.7,2.34444073]
[1770155203751,0.00555643,2290.7,2289.7,2.34444073]
[1770155204158,2.183,2291.0,2289.7,2.34444073]
[1770155204358,0.35725349,2291.6,2289.7,2.34444073]
[1770155204761,2.39514466,2291.1,2289.7,2.34444073]
[1770155204961,2.39514466,2290.9,2289.7,2.34444073]
[1770155205161,2.39514466,2290.7,2289.7,2.34444073]
[1770155205560,2.561,2290.8,2289.7,2.34444073]
[1770155206263,2.39514466,2290.7,2289.7,2.34444073]
[1770155206663,2.61368466,2290.7,2289.6,0.00490259]
[1770155207663,2.61368466,2290.7,2289.6,2.30571587]
[1770155208261,2.39514466,2290.7,2289.6,2.30571587]
[1770155208563,4.745,2290.8,2289.6,2.30571587]
[1770155209058,7.14014466,2290.8,2289.6,2.30571587]
[1770155209259,2.61368466,2290.7,2289.6,0.00490259]
[1770155209457,2.61368466,2290.7,2289.6,2.30571587]
[1770155214060,2.30737524,2290.5,2289.6,0.00490259]
[1770155214261,2.42789382,2290.0,2289.4,0.21839306]
[1770155214462,2.42789382,2289.9,2289.0,2.36836335]
[1770155215270,2.42789382,2289.9,2289.0,2.37176848]
[1770155215967,2.562,2290.0,2289.0,2.37176848]
[1770155216168,2.42789382,2289.9,2289.0,2.37176848]
[1770155216467,2.42789382,2289.9,2289.0,0.00340513]
[1770155216671,2.42789382,2289.3,2287.8,4.92711918]
[1770155216870,2.563,2289.2,2287.8,2.3647826]
[1770155217170,2.185,2289.8,2288.3,2.3647826]
[1770155217369,2.563,2290.3,2288.3,2.3647826]
[1770155217370,4.99089382,2290.3,2288.6,2.3647826]
[1770155217565,4.9947966,2290.3,2288.8,2.3647826]
[1770155217763,2.42789382,2290.2,2288.8,2.3647826]
[1770155218366,0.00390278,2290.3,2288.8,2.3647826]
[1770155218570,2.4317966,2290.3,2288.9,2.3647826]
[1770155219168,2.42789382,2290.1,2288.9,2.3647826]
[1770155220067,0.00390278,2290.3,2288.9,2.3647826]
[1770155220372,38.27172229,2290.9,2288.9,2.3647826]
[1770155220373,2.42789382,2291.1,2289.2,2.3647826]
[1770155220572,2.42789382,2291.1,2289.7,2.3647826]
[1770155221065,0.22,2291.5,2289.9,2.3647826]
[1770155221265,0.22,2291.5,2290.1,2.3647826]
[1770155221572,0.22407321,2291.5,2290.3,2.3647826]
[1770155221765,0.22407321,2291.5,2290.3,2.3681753]
[1770155221966,38.27172229,2292.0,2290.3,2.3681753]
[1770155222271,2.49857567,2292.1,2291.0,2.3647826]
[1770155222470,0.33160579,2292.2,2291.0,2.3647826]
[1770155222669,6.3787781,2292.5,2291.0,2.3647826]
[1770155222865,2.49857567,2292.8,2291.2,2.81863402]
[1770155223072,0.00498145,2292.8,2291.6,2.60014402]
[1770155223270,0.00498145,2292.8,2291.7,2.185]
[1770155223568,0.00498145,2292.8,2291.8,2.563]
[1770155224769,2.49857568,2293.5,2291.8,5.16314402]
[1770155225172,2.49857568,2293.5,2291.8,9.16883899]
[1770155225472,2.49857568,2293.5,2291.8,2.563]
[1770155225670,2.50304221,2293.5,2291.8,5.16314402]
[1770155225968,2.50304221,2293.5,2291.8,4.096763]
[1770155226172,2.72132221,2293.5,2291.9,2.562]
[1770155226370,2.50304221,2293.5,2291.9,2.562]
[1770155226570,2.50304221,2293.5,2291.9,9.47316401]
[1770155226774,2.50304221,2293.5,2292.0,6.69274401]
[1770155226975,2.50304221,2293.5,2292.0,2.6035985]
[1770155227176,2.50304221,2293.5,2292.0,2.8220085]
[1770155227376,0.00446653,2293.5,2292.0,6.90781014]
[1770155227577,0.00446653,2293.5,2292.1,2.60014402]
[1770155227773,0.00446653,2293.5,2292.1,6.68594566]
[1770155227969,0.00446653,2293.5,2292.1,2.60014402]
[1770155228480,2.49857568,2294.3,2292.5,0.21836]
[1770155228677,2.49857568,2294.3,2292.6,2.78036]
[1770155228874,2.49857568,2294.3,2292.7,0.21835]
[1770155229279,2.49857568,2294.3,2292.8,2.562]
[1770155229575,2.72147765,2294.3,2292.8,2.562]
[1770155229875,2.72147765,2294.3,2292.9,2.562]
[1770155230274,2.50327765,2294.3,2292.9,2.562]
[1770155230471,2.50327765,2294.3,2292.5,2.60014402]
[1770155230674,2.50327765,2294.3,2293.0,2.561]
[1770155231071,0.00470197,2294.3,2293.0,2.561]
[1770155231879,2.50327765,2294.3,2292.5,0.21837]
[1770155232081,2.50327765,2294.3,2292.6,4.744]
[1770155232280,2.55327765,2294.3,2292.6,4.744]
[1770155232482,2.55327765,2294.3,2292.5,0.21837]
[1770155232778,2.55327765,2294.3,2292.7,2.183]
[1770155233079,2.55327765,2294.3,2292.5,0.21837]
[1770155233377,2.77147765,2294.3,2292.6,2.561]
[1770155233579,2.77147765,2294.3,2292.7,4.744]
[1770155235078,2.55327765,2294.3,2292.7,4.744]
[1770155235383,2.55327765,2294.3,2292.4,0.21838]
[1770155235585,2.55327765,2294.3,2292.5,4.743]
[1770155235783,2.77147765,2294.3,2292.5,2.182]
[1770155236185,2.71679568,2294.1,2292.5,2.56]
[1770155236782,2.49857568,2294.1,2292.7,0.21835]
[1770155236984,2.55327765,2294.3,2292.8,2.56]
[1770155237185,2.49857568,2294.2,2292.1,2.37788516]
[1770155237382,2.71678568,2294.2,2292.1,2.37788516]
[1770155237583,2.49857568,2293.7,2292.2,2.56]
[1770155237984,2.49857568,2293.7,2292.3,2.56]
[1770155238186,2.49857568,2293.7,2292.3,4.742]
[1770155238487,2.49857568,2293.7,2292.0,0.00345448]
[1770155238891,2.49857568,2293.5,2292.0,0.00345448]
[1770155241289,2.49241277,2293.3,2292.0,0.00345448]
[1770155243691,2.49095221,2293.0,2291.2,0.0112251]
[1770155243891,2.49095221,2292.8,2291.2,2.5712251]
[1770155244894,2.49095221,2292.8,2291.2,2.57615953]
[1770155245291,2.49095221,2292.8,2291.2,2.56493443]
[1770155246288,2.49095221,2292.8,2291.3,0.0207695]
[1770155246593,2.70929221,2292.8,2291.2,0.00493443]
[1770155246993,2.48618002,2292.6,2291.2,0.00493443]
[1770155247193,2.49082313,2292.6,2291.2,0.00493443]
[1770155247895,2.48724596,2292.4,2290.2,1.50323664]
[1770155248096,2.77166248,2290.6,2289.6,6.46177775]
[1770155248296,3.7798759,2290.5,2289.3,2.49656476]
[1770155248593,2.183,2290.7,2289.4,2.49656476]
[1770155248789,3.77360349,2290.6,2289.4,2.49656476]
[1770155248990,0.00491668,2290.6,2289.6,2.49656476]
[1770155249195,3.78163149,2290.5,2289.6,2.49656476]
[1770155249400,0.00491668,2290.6,2289.5,13.13747799]
[1770155249595,3.80382493,2290.5,2289.5,13.13747799]
[1770155249796,0.00491668,2290.6,2289.5,13.13747799]
[1770155249996,3.80291744,2290.5,2289.5,13.13747799]
[1770155250198,0.00491668,2290.6,2289.5,13.13747799]
[1770155250698,0.00491668,2290.6,2289.6,2.49656477]
[1770155251099,0.00491668,2290.6,2289.9,2.49656477]
[1770155251600,0.00491668,2290.6,2290.0,13.13747799]
[1770155251902,2.5491777,2291.7,2290.3,2.49656477]
[1770155252097,2.5491777,2292.2,2290.8,2.49656477]
[1770155252301,3.79594468,2292.1,2290.9,2.49656477]
[1770155252497,2.183,2292.3,2291.0,2.49656477]
[1770155252697,3.78907116,2292.2,2291.0,2.49656477]
[1770155252997,3.78907116,2292.2,2290.8,2.561]
[1770155252998,3.78907116,2292.1,2291.1,13.13747799]
[1770155253294,3.78907116,2292.1,2291.1,0.00471553]
[1770155253495,3.78907116,2292.1,2290.4,2.49656477]
[1770155253496,0.21842,2292.0,2290.4,2.49656477]
[1770155253700,3.78907116,2291.9,2290.4,2.49656477]
[1770155253903,3.78907116,2291.8,2290.6,2.49656477]
[1770155254199,3.78907116,2291.7,2290.3,18.19504276]
[1770155254399,3.78391601,2291.6,2290.3,2.50210438]
[1770155254595,0.21844,2291.8,2290.4,13.13747799]
[1770155254791,3.78335603,2291.7,2290.4,13.13747799]
[1770155254999,3.78335603,2291.6,2290.4,13.13747799]
[1770155255202,0.29441366,2291.8,2290.4,13.13747799]
[1770155255402,3.78218021,2291.7,2290.5,2.49656477]
[1770155255601,0.29441366,2291.8,2290.5,2.49656477]
[1770155255802,3.94796999,2291.7,2290.6,13.13747799]
[1770155256001,3.94796999,2291.6,2290.6,13.13747799]
[1770155256197,0.29441366,2291.8,2290.6,13.13747799]
[1770155256402,3.94508115,2291.7,2290.6,13.13747799]
[1770155256602,3.94508115,2291.6,2290.6,13.13747799]
[1770155256798,0.29441366,2291.8,2290.6,13.13747799]
[1770155256997,3.94666353,2291.7,2290.6,13.13747799]
[1770155257199,3.94666353,2291.6,2290.6,13.13747799]
[1770155257501,0.29441366,2291.8,2290.6,13.13747799]
[1770155257800,3.94511984,2291.7,2290.6,13.13747799]
[1770155257998,3.94511984,2291.6,2290.6,13.13747799]
[1770155258204,2.84359136,2291.8,2290.6,13.13747799]
[1770155258503,3.94500921,2291.7,2290.5,2.49656477]
[1770155258703,3.94500921,2291.6,2290.6,13.13747799]
[1770155258898,3.94455508,2291.5,2290.6,13.13747799]
[1770155259105,0.21845,2291.7,2290.6,13.13747799]
[1770155259304,3.94314467,2291.6,2290.6,13.13747799]
[1770155259504,0.21845,2291.7,2290.6,13.13747799]
[1770155259799,3.94152109,2291.6,2290.3,0.00553961]
[1770155260002,0.2185,2291.2,2290.4,13.13747799]
[1770155260200,0.2185,2291.1,2290.4,13.13747799]
[1770155260401,0.2185,2291.1,2290.3,0.00553961]
[1770155260601,0.2185,2291.1,2290.3,13.1430176]
[1770155262000,2.5491777,2291.5,2290.6,8.7296]
[1770155262205,3.9449696,2291.4,2290.5,2.49656477]
[1770155262407,3.9449696,2291.3,2290.5,11.22616477]
[1770155262602,3.9449696,2291.3,2290.6,8.7296]
[1770155262999,3.9449696,2291.3,2290.7,8.7296]
[1770155263204,3.9449696,2291.3,2290.6,21.86707799]
[1770155263605,3.9449696,2291.3,2290.9,6.46025078]
[1770155263899,3.9449696,2291.3,2290.6,13.13747799]
[1770155264205,3.9449696,2291.3,2290.8,13.13747799]
[1770155264402,3.9449696,2291.3,2290.6,21.86707799]
[1770155264803,3.9449696,2291.3,2290.7,8.7296]
[1770155265004,3.9449696,2291.3,2290.6,13.13747799]
[1770155265405,6.4941473,2291.3,2290.6,21.86707799]
[1770155265605,3.9449696,2291.2,2290.6,21.86707799]
[1770155265806,3.9449696,2291.1,2290.6,24.36364276]
[1770155266002,3.95754247,2291.0,2290.2,2.49656477]
[1770155266305,3.95992823,2290.9,2290.5,13.13747799]
[1770155266503,0.21851,2291.0,2290.3,8.51513961]
[1770155266710,2.7676877,2291.0,2290.3,8.51513961]
[1770155266909,3.94504605,2290.9,2290.3,8.51513961]
[1770155267312,3.94504605,2290.9,2290.4,8.51513961]
[1770155267521,3.94504605,2290.9,2290.4,0.0040662]
[1770155269318,6.49422375,2290.9,2290.4,0.0040662]
[1770155269519,3.94504605,2290.8,2290.4,0.0040662]
[1770155269816,3.94504605,2290.7,2290.4,0.0040662]
[1770155270115,2.5491777,2290.9,2290.4,0.0040662]
[1770155270116,2.5491777,2290.9,2290.4,5.07417467]
[1770155270420,3.95333143,2290.8,2290.4,5.07417467]
[1770155270620,3.95333143,2290.7,2290.4,5.07417467]
[1770155270812,3.95333143,2290.6,2290.4,5.07417467]
[1770155271011,2.5491777,2290.8,2290.4,5.07417467]
[1770155271213,2.5491777,2290.8,2290.4,0.00347864]
[1770155271521,2.7677377,2290.6,2289.9,2.49780682]
[1770155271715,3.95698546,2290.5,2290.0,5.07417467]
[1770155271914,4.17554546,2290.5,2290.1,5.07417467]
[1770155272116,3.95698546,2290.4,2290.1,5.07417467]
[1770155272317,2.55383055,2290.4,2289.9,2.49780682]
[1770155272624,3.95698546,2290.3,2289.9,5.07417467]
[1770155272818,3.95698546,2290.2,2289.9,5.07417467]
[1770155273019,3.95698546,2290.1,2289.9,5.07417467]
[1770155273223,2.55383055,2290.4,2289.9,5.07417467]
[1770155273421,2.5491777,2290.3,2289.9,5.07417467]
[1770155273718,2.5491777,2290.3,2289.5,2.563]
[1770155273719,3.96624931,2290.3,2290.1,2.49780682]
[1770155273921,2.5491777,2290.5,2290.2,5.07417467]
[1770155274219,2.5491777,2290.5,2290.1,5.07417467]
[1770155274519,2.5491777,2290.5,2290.4,5.07417467]
[1770155274816,38.23766557,2290.7,2290.1,5.07417467]
[1770155275025,40.52398099,2290.6,2290.3,3.85634248]
[1770155275522,40.52398099,2290.6,2290.5,3.85634248]
[1770155275823,40.52398099,2290.6,2290.0,2.563]
[1770155276024,40.52943469,2290.6,2290.0,2.56710475]
[1770155276423,38.23766557,2290.5,2290.0,2.56710475]
[1770155276625,38.23766557,2290.5,2290.0,4.95011953]
[1770155277123,33.77183637,2290.5,2290.1,2.38301478]
[1770155277321,5.05625896,2290.6,2290.0,2.56710475]
[1770155277322,7.33712068,2290.9,2290.0,0.00410475]
[1770155277521,2.28631542,2290.9,2290.1,4.748]
[1770155277717,2.49822549,2291.3,2290.1,4.748]
[1770155277922,14.49822549,2291.3,2290.1,4.748]
[1770155278417,14.50158264,2291.3,2290.1,4.748]
[1770155279525,0.00335715,2291.3,2290.1,4.748]
[1770155280126,0.00335715,2291.3,2290.2,0.21858]
[1770155280525,0.00335715,2291.3,2290.3,0.21858]
[1770155282217,0.00335715,2291.3,2290.5,0.21856]
[1770155282421,0.00335715,2291.3,2290.6,4.747]
[1770155283226,0.00335715,2291.3,2290.4,3.91321356]
[1770155283427,2.49822549,2291.2,2290.5,2.562]
[1770155283626,12.00335715,2291.3,2290.2,2.184]
[1770155283627,12.00335715,2291.3,2290.6,2.562]
[1770155283828,0.00335715,2291.3,2290.6,2.562]
[1770155285835,0.00335715,2291.3,2290.3,3.91321356]
[1770155286036,14.50158264,2291.3,2290.4,4.746]
[1770155286238,14.50158264,2291.3,2290.5,4.746]
[1770155286639,14.50158264,2291.3,2290.1,4.13181356]
[1770155286838,14.50158264,2291.3,2290.2,4.746]
[1770155287039,0.00335715,2291.3,2290.4,0.21857]
[1770155287534,0.00335715,2291.3,2290.5,4.746]
[1770155287941,0.00335715,2291.3,2290.4,0.21857]
[1770155288135,0.00335715,2291.3,2290.5,4.746]
[1770155288441,0.00335715,2291.3,2290.4,0.21857]
[1770155288738,0.00335715,2291.3,2290.5,4.746]
[1770155289740,0.00335715,2291.3,2290.6,4.746]
[1770155290034,12.00335715,2291.3,2290.6,4.746]
[1770155290235,2.49822549,2292.0,2290.6,4.746]
[1770155290436,12.0,2291.8,2290.6,8.65921356]
[1770155290640,2.49822549,2291.7,2290.6,3.91321356]
[1770155290841,2.49822549,2291.6,2290.7,4.746]
[1770155291142,14.49822549,2291.6,2290.7,4.746]
[1770155291342,4.3664,2291.5,2290.7,4.746]
[1770155291541,4.3664,2291.5,2290.8,4.746]
[1770155291740,12.0,2291.4,2290.8,4.746]
[1770155292242,0.00496831,2291.6,2290.8,4.746]
[1770155292442,12.0,2291.5,2290.4,0.21857]
[1770155292740,12.0,2291.5,2290.5,4.96456]
[1770155293041,0.00496831,2291.6,2290.6,0.21855]
[1770155293241,0.00496831,2291.6,2290.7,0.02466494]
[1770155293638,12.00496831,2291.6,2290.7,0.02466494]
[1770155294242,4.3664,2291.5,2290.7,0.02466494]
[1770155294444,12.00496831,2291.6,2290.7,0.02466494]
[1770155295040,16.37136831,2291.6,2290.8,4.746]
[1770155295546,4.3664,2291.5,2290.9,4.746]
[1770155295745,16.37136831,2291.6,2290.9,4.746]
[1770155296247,12.00496831,2291.6,2290.9,4.746]
[1770155296449,12.00496831,2291.6,2291.0,2.562]
[1770155296450,4.3664,2291.5,2291.0,2.562]
[1770155296744,2.44152582,2291.5,2291.0,4.746]
[1770155296937,16.3664,2291.4,2291.0,4.746]
[1770155297137,4.3664,2291.3,2291.0,4.746]
[1770155297445,12.0,2291.4,2291.0,4.746]
[1770155297642,4.3664,2291.3,2290.9,2.184]
[1770155297844,12.0,2291.4,2291.0,2.562]
[1770155298044,4.3664,2291.3,2291.0,2.562]
[1770155298544,4.3664,2291.2,2291.0,2.562]
[1770155298744,16.3664,2291.3,2291.0,2.562]
[1770155299141,16.3664,2291.2,2291.1,1.34]
[1770155299349,0.62385,2291.2,2291.0,2.562]
[1770155299547,12.0,2291.2,2291.0,0.0092026]
[1770155299748,0.62385,2291.1,2291.0,0.0092026]
[1770155301345,3.12005121,2291.1,2290.3,3.91321356]
[1770155301551,2.49620121,2290.6,2289.5,0.04504231]
[1770155301846,3.12005121,2290.2,2289.7,2.562]
[1770155302051,12.0,2290.1,2289.4,2.40239306]
[1770155302246,0.62385,2290.0,2289.7,2.562]
[1770155302548,12.0,2290.1,2289.4,0.21839306]
[1770155302748,2.49888257,2291.0,2289.7,0.21863]
[1770155302945,2.49888257,2291.0,2289.9,0.21861]
[1770155303146,2.49888257,2291.5,2290.0,0.21861]
[1770155303342,2.49888257,2291.5,2290.4,0.01286353]
[1770155303541,2.49888257,2291.5,2290.5,4.746]
[1770155303748,2.49888257,2291.5,2290.5,0.01286353]
[1770155303950,2.49888257,2291.5,2290.6,4.746]
[1770155304652,2.49888257,2291.5,2290.5,0.01286353]
[1770155304848,2.49888257,2291.5,2290.2,0.01286353]
[1770155305152,2.49888257,2291.5,2290.6,2.562]
[1770155305950,2.49888257,2291.5,2290.2,3.92607709]
[1770155306149,2.49888257,2291.5,2290.4,2.184]
[1770155307045,2.49888257,2291.5,2290.5,2.562]
[1770155307452,2.49888257,2291.5,2290.1,3.91321356]
[1770155307950,2.49888257,2291.5,2290.2,2.562]
[1770155308154,2.49888257,2291.5,2290.2,5.1739459]
[1770155308353,2.49888257,2291.5,2290.0,2.6119459]
[1770155308652,2.49888257,2291.4,2290.1,2.562]
[1770155311748,2.49888257,2291.4,2290.1,2.6119459]
[1770155311953,2.49888257,2291.4,2290.2,4.746]
[1770155312150,2.49888257,2291.4,2290.3,2.562]
[1770155315454,2.49888257,2291.4,2290.4,2.562]
[1770155316554,2.49888257,2291.4,2290.2,2.62317338]
[1770155316555,2.49888257,2291.4,2290.5,2.562]
[1770155318252,2.49888257,2291.4,2290.2,2.6119459]
[1770155318554,2.49888257,2291.4,2290.0,2.8305559]